[Event "Titled Tuesday Blitz November 2 2021"]
[White "Bakalchuk, Johnatan"]
[Black "Urazayev, Arystanbek"]
[WhiteFideId "2810301"]
[BlackFideId "13709810"]
[WhiteElo "2486"]
[BlackElo "2321"]
[Result "0-1"]
[Round "06"]
[TimeControl "180+1"]
[Date "2021.11.02"]
[WhiteClock "0:00:15"]
[BlackClock "0:00:28"]

1. e4 {[%clk 0:03:00]}  c5 {[%clk 0:03:00]} 2. Nf3 {[%clk 0:03:01]}  e6 {[%clk 0:03:01]} 3. d4 {[%clk 0:03:01]}  cxd4 {[%clk 0:03:01]} 4. Nxd4 {[%clk 0:03:02]}  Nf6 {[%clk 0:03:02]} 5. Nc3 {[%clk 0:03:02]}  Nc6 {[%clk 0:03:03]} 6. Ndb5 {[%clk 0:03:02]}  Bc5 {[%clk 0:03:02]} 7. Bf4 {[%clk 0:02:58]}  O-O {[%clk 0:03:02]} 8. Bc7 {[%clk 0:02:57]}  Qe7 {[%clk 0:03:02]} 9. Bd6 {[%clk 0:02:55]}  Bxd6 {[%clk 0:03:02]} 10. Qxd6 {[%clk 0:02:56]}  Qd8 {[%clk 0:03:03]} 11. O-O-O {[%clk 0:02:47]}  a6 {[%clk 0:03:02]} 12. Nd4 {[%clk 0:02:44]}  Ne7 {[%clk 0:03:03]} 13. Nb3 {[%clk 0:02:33]}  b6 {[%clk 0:02:55]} 14. f3 {[%clk 0:02:24]}  Bb7 {[%clk 0:02:51]} 15. g4 {[%clk 0:02:24]}  Bc6 {[%clk 0:02:46]} 16. Nd4 {[%clk 0:02:18]}  Ne8 {[%clk 0:02:32]} 17. Nxc6 {[%clk 0:02:14]}  Nxc6 {[%clk 0:02:27]} 18. Qxd7 {[%clk 0:02:10]}  Qxd7 {[%clk 0:02:25]} 19. Rxd7 {[%clk 0:02:11]}  Ne5 {[%clk 0:02:26]} 20. Rb7 {[%clk 0:02:09]}  b5 {[%clk 0:02:18]} 21. Be2 {[%clk 0:02:09]}  Nd6 {[%clk 0:02:12]} 22. Rc7 {[%clk 0:02:04]}  Ng6 {[%clk 0:02:09]} 23. Rd1 {[%clk 0:02:00]}  Rfd8 {[%clk 0:01:57]} 24. Rc6 {[%clk 0:01:52]}  Nb7 {[%clk 0:01:57]} 25. Rxd8+ {[%clk 0:01:44]}  Nxd8 {[%clk 0:01:58]} 26. Rb6 {[%clk 0:01:44]}  Ne7 {[%clk 0:01:51]} 27. Rd6 {[%clk 0:01:37]}  Ndc6 {[%clk 0:01:48]} 28. a4 {[%clk 0:01:35]}  b4 {[%clk 0:01:45]} 29. Nd1 {[%clk 0:01:35]}  e5 {[%clk 0:01:42]} 30. Ne3 {[%clk 0:01:33]}  a5 {[%clk 0:01:31]} 31. Rd7 {[%clk 0:01:25]}  Kf8 {[%clk 0:01:27]} 32. c3 {[%clk 0:01:22]}  bxc3 {[%clk 0:01:17]} 33. bxc3 {[%clk 0:01:23]}  Rd8 {[%clk 0:01:16]} 34. Rxd8+ {[%clk 0:01:20]}  Nxd8 {[%clk 0:01:17]} 35. Bb5 {[%clk 0:01:17]}  f6 {[%clk 0:01:00]} 36. Kd2 {[%clk 0:01:08]}  Kf7 {[%clk 0:00:59]} 37. c4 {[%clk 0:01:03]}  Nb7 {[%clk 0:00:57]} 38. Kc3 {[%clk 0:00:50]}  Nc5 {[%clk 0:00:57]} 39. Kd2 {[%clk 0:00:27]}  Nc8 {[%clk 0:00:57]} 40. Nd5 {[%clk 0:00:24]}  Ke6 {[%clk 0:00:48]} 41. Kc3 {[%clk 0:00:22]}  Kd6 {[%clk 0:00:46]} 42. h4 {[%clk 0:00:22]}  h6 {[%clk 0:00:40]} 43. h5 {[%clk 0:00:18]}  Ne6 {[%clk 0:00:38]} 44. Kd2 {[%clk 0:00:18]}  Nd4 {[%clk 0:00:38]} 45. Ke3 {[%clk 0:00:16]}  Nc2+ {[%clk 0:00:28]} 46. Kf2 {[%clk 0:00:15]}  Nd4 {[%clk 0:00:29]} 47. Ne3 {[%clk 0:00:16]}  Nb6 {[%clk 0:00:28]} 48. Kg3 {[%clk 0:00:12]}  Kc5 {[%clk 0:00:28]} 49. f4 {[%clk 0:00:12]}  Ne2+ {[%clk 0:00:28]} 50. Kf3 {[%clk 0:00:12]}  Nxf4 {[%clk 0:00:28]} 51. Nf5 {[%clk 0:00:12]}  Ne6 {[%clk 0:00:29]} 52. Ba6 {[%clk 0:00:13]}  Nd4+ {[%clk 0:00:29]} 53. Ke3 {[%clk 0:00:13]}  Nxf5+ {[%clk 0:00:28]} 54. exf5 {[%clk 0:00:14]}  Nxc4+ {[%clk 0:00:29]} 55. Ke4 {[%clk 0:00:14]}  Nb6 {[%clk 0:00:28]} 56. Kd3 {[%clk 0:00:15]}  Nxa4 {[%clk 0:00:28]} 0-1


[Site "https://www.chess.com"]

[Event "Titled Tuesday Blitz November 2 2021"]
[White "Bortnyk, Olexandr"]
[Black "Goltsev, Dmitry"]
[WhiteFideId "14120828"]
[BlackFideId "24176710"]
[WhiteElo "2723"]
[BlackElo "2334"]
[Result "1/2-1/2"]
[Round "06"]
[TimeControl "180+1"]
[Date "2021.11.02"]
[WhiteClock "0:00:06"]
[BlackClock "0:00:07"]

1. e4 {[%clk 0:03:00]}  e6 {[%clk 0:02:59]} 2. d4 {[%clk 0:03:00]}  d5 {[%clk 0:03:00]} 3. Nc3 {[%clk 0:03:01]}  Nf6 {[%clk 0:02:59]} 4. e5 {[%clk 0:02:58]}  Nfd7 {[%clk 0:03:00]} 5. Nce2 {[%clk 0:02:59]}  c5 {[%clk 0:02:59]} 6. f4 {[%clk 0:02:59]}  Nc6 {[%clk 0:02:59]} 7. Nf3 {[%clk 0:02:59]}  Qb6 {[%clk 0:02:57]} 8. c3 {[%clk 0:02:59]}  cxd4 {[%clk 0:02:57]} 9. cxd4 {[%clk 0:02:56]}  Be7 {[%clk 0:02:54]} 10. g3 {[%clk 0:02:56]}  a6 {[%clk 0:02:53]} 11. Bh3 {[%clk 0:02:55]}  Qb4+ {[%clk 0:02:52]} 12. Kf1 {[%clk 0:02:50]}  O-O {[%clk 0:02:49]} 13. Kg2 {[%clk 0:02:49]}  b5 {[%clk 0:02:46]} 14. Bd2 {[%clk 0:02:15]}  Qxb2 {[%clk 0:02:43]} 15. a3 {[%clk 0:02:15]}  b4 {[%clk 0:02:32]} 16. Qa4 {[%clk 0:02:15]}  Bb7 {[%clk 0:02:22]} 17. Rhb1 {[%clk 0:02:14]}  Nb6 {[%clk 0:02:07]} 18. Qd1 {[%clk 0:02:14]}  bxa3 {[%clk 0:02:01]} 19. Rxb2 {[%clk 0:01:52]}  axb2 {[%clk 0:02:02]} 20. Rb1 {[%clk 0:01:53]}  Nc4 {[%clk 0:02:00]} 21. Kf2 {[%clk 0:01:54]}  a5 {[%clk 0:01:50]} 22. Bc3 {[%clk 0:01:53]}  a4 {[%clk 0:01:15]} 23. Bxb2 {[%clk 0:01:52]}  Nxb2 {[%clk 0:01:14]} 24. Rxb2 {[%clk 0:01:53]}  Bc8 {[%clk 0:01:12]} 25. Rb6 {[%clk 0:01:25]}  Bd7 {[%clk 0:01:02]} 26. Ne1 {[%clk 0:01:00]}  a3 {[%clk 0:00:57]} 27. Nc2 {[%clk 0:00:59]}  a2 {[%clk 0:00:57]} 28. Qa1 {[%clk 0:00:40]}  Ra7 {[%clk 0:00:56]} 29. Nc3 {[%clk 0:00:38]}  Nxd4 {[%clk 0:00:50]} 30. Rb2 {[%clk 0:00:20]}  Bc5 {[%clk 0:00:47]} 31. Kf1 {[%clk 0:00:15]}  Nxc2 {[%clk 0:00:26]} 32. Rxc2 {[%clk 0:00:15]}  Bd4 {[%clk 0:00:25]} 33. Bg4 {[%clk 0:00:03]}  Rb8 {[%clk 0:00:19]} 34. Rxa2 {[%clk 0:00:04]}  Bxc3 {[%clk 0:00:18]} 35. Rxa7 {[%clk 0:00:02]}  Bxa1 {[%clk 0:00:16]} 36. Rxd7 {[%clk 0:00:03]}  g6 {[%clk 0:00:14]} 37. h4 {[%clk 0:00:02]}  h5 {[%clk 0:00:14]} 38. Be2 {[%clk 0:00:02]}  Bd4 {[%clk 0:00:14]} 39. g4 {[%clk 0:00:02]}  hxg4 {[%clk 0:00:13]} 40. Bxg4 {[%clk 0:00:03]}  Rb1+ {[%clk 0:00:13]} 41. Ke2 {[%clk 0:00:03]}  Rh1 {[%clk 0:00:13]} 42. h5 {[%clk 0:00:02]}  gxh5 {[%clk 0:00:13]} 43. Bf3 {[%clk 0:00:03]}  Rh2+ {[%clk 0:00:12]} 44. Kd1 {[%clk 0:00:03]}  h4 {[%clk 0:00:12]} 45. Bh5 {[%clk 0:00:02]}  f5 {[%clk 0:00:12]} 46. Bf7+ {[%clk 0:00:02]}  Kh8 {[%clk 0:00:12]} 47. Bxe6 {[%clk 0:00:03]}  Rf2 {[%clk 0:00:12]} 48. Bxf5 {[%clk 0:00:02]}  Rxf4 {[%clk 0:00:12]} 49. Rh7+ {[%clk 0:00:02]}  Kg8 {[%clk 0:00:13]} 50. Rh5 {[%clk 0:00:03]}  Kg7 {[%clk 0:00:11]} 51. Rh7+ {[%clk 0:00:02]}  Kg8 {[%clk 0:00:10]} 52. Rh5 {[%clk 0:00:03]}  Kg7 {[%clk 0:00:07]} 53. e6 {[%clk 0:00:02]}  Kf6 {[%clk 0:00:07]} 54. Bh3 {[%clk 0:00:02]}  Re4 {[%clk 0:00:07]} 55. Rxd5 {[%clk 0:00:02]}  Bf2 {[%clk 0:00:08]} 56. Rh5 {[%clk 0:00:02]}  Bg3 {[%clk 0:00:08]} 57. Kd2 {[%clk 0:00:02]}  Ke7 {[%clk 0:00:08]} 58. Rh7+ {[%clk 0:00:02]}  Kd6 {[%clk 0:00:08]} 59. Rd7+ {[%clk 0:00:03]}  Kc6 {[%clk 0:00:08]} 60. e7 {[%clk 0:00:03]}  Bd6 {[%clk 0:00:08]} 61. Rd8 {[%clk 0:00:02]}  Rxe7 {[%clk 0:00:08]} 62. Rg8 {[%clk 0:00:02]}  Bg3 {[%clk 0:00:08]} 63. Kd3 {[%clk 0:00:02]}  Re5 {[%clk 0:00:08]} 64. Rg6+ {[%clk 0:00:02]}  Kc5 {[%clk 0:00:08]} 65. Bg2 {[%clk 0:00:02]}  Rf5 {[%clk 0:00:07]} 66. Bh3 {[%clk 0:00:02]}  Rf2 {[%clk 0:00:07]} 67. Ke3 {[%clk 0:00:02]}  Rh2 {[%clk 0:00:08]} 68. Bg4 {[%clk 0:00:03]}  Rb2 {[%clk 0:00:08]} 69. Bh3 {[%clk 0:00:02]}  Be5 {[%clk 0:00:07]} 70. Ke4 {[%clk 0:00:02]}  Bc3 {[%clk 0:00:05]} 71. Rg5+ {[%clk 0:00:02]}  Kb4 {[%clk 0:00:05]} 72. Kd3 {[%clk 0:00:02]}  Rd2+ {[%clk 0:00:05]} 73. Ke4 {[%clk 0:00:02]}  Rh2 {[%clk 0:00:06]} 74. Bg2 {[%clk 0:00:02]}  Be1 {[%clk 0:00:04]} 75. Kf3 {[%clk 0:00:02]}  Bg3 {[%clk 0:00:05]} 76. Rh5 {[%clk 0:00:02]}  Kc3 {[%clk 0:00:05]} 77. Rh8 {[%clk 0:00:03]}  Kd4 {[%clk 0:00:05]} 78. Rd8+ {[%clk 0:00:02]}  Ke5 {[%clk 0:00:05]} 79. Rd2 {[%clk 0:00:03]}  Kf6 {[%clk 0:00:06]} 80. Rd5 {[%clk 0:00:03]}  Ke6 {[%clk 0:00:05]} 81. Rh5 {[%clk 0:00:03]}  Kf6 {[%clk 0:00:05]} 82. Rh6+ {[%clk 0:00:04]}  Kg5 {[%clk 0:00:06]} 83. Ra6 {[%clk 0:00:05]}  Kf5 {[%clk 0:00:06]} 84. Ra5+ {[%clk 0:00:05]}  Ke6 {[%clk 0:00:06]} 85. Rb5 {[%clk 0:00:04]}  Kd6 {[%clk 0:00:06]} 86. Rb6+ {[%clk 0:00:04]}  Kc5 {[%clk 0:00:07]} 87. Rg6 {[%clk 0:00:05]}  Kd4 {[%clk 0:00:07]} 88. Rg4+ {[%clk 0:00:05]}  Ke5 {[%clk 0:00:08]} 89. Re4+ {[%clk 0:00:05]}  Kf6 {[%clk 0:00:08]} 90. Re2 {[%clk 0:00:06]}  h3 {[%clk 0:00:06]} 91. Kxg3 {[%clk 0:00:05]}  Rxg2+ {[%clk 0:00:06]} 92. Rxg2 {[%clk 0:00:05]}  hxg2 {[%clk 0:00:07]} 93. Kxg2 {[%clk 0:00:06]} 1/2-1/2


[Site "https://www.chess.com"]

[Event "Titled Tuesday Blitz November 2 2021"]
[White "Erdogdu, Mert"]
[Black "Przybylski, Wojciech"]
[WhiteFideId "6301495"]
[BlackFideId "1117599"]
[WhiteElo "2485"]
[BlackElo "2247"]
[Result "0-1"]
[Round "06"]
[TimeControl "180+1"]
[Date "2021.11.02"]
[WhiteClock "0:00:01"]
[BlackClock "0:00:02"]

1. e4 {[%clk 0:03:00]}  c5 {[%clk 0:02:56]} 2. Nf3 {[%clk 0:03:00]}  e6 {[%clk 0:02:56]} 3. d4 {[%clk 0:03:01]}  cxd4 {[%clk 0:02:57]} 4. Nxd4 {[%clk 0:03:01]}  Nc6 {[%clk 0:02:57]} 5. Nc3 {[%clk 0:03:01]}  Qc7 {[%clk 0:02:57]} 6. Be3 {[%clk 0:03:00]}  a6 {[%clk 0:02:57]} 7. Qd2 {[%clk 0:02:59]}  Nf6 {[%clk 0:02:55]} 8. O-O-O {[%clk 0:02:59]}  Be7 {[%clk 0:02:52]} 9. f3 {[%clk 0:02:59]}  b5 {[%clk 0:02:51]} 10. Bf4 {[%clk 0:02:50]}  e5 {[%clk 0:02:37]} 11. Nxc6 {[%clk 0:02:43]}  dxc6 {[%clk 0:02:33]} 12. Bg3 {[%clk 0:02:39]}  O-O {[%clk 0:02:21]} 13. Kb1 {[%clk 0:02:25]}  Be6 {[%clk 0:01:13]} 14. Be2 {[%clk 0:02:10]}  Rfd8 {[%clk 0:01:05]} 15. Qe3 {[%clk 0:01:46]}  Qa5 {[%clk 0:00:50]} 16. a3 {[%clk 0:01:26]}  b4 {[%clk 0:00:48]} 17. Na2 {[%clk 0:00:41]}  bxa3 {[%clk 0:00:40]} 18. b3 {[%clk 0:00:40]}  c5 {[%clk 0:00:32]} 19. Qc3 {[%clk 0:00:31]}  Qb6 {[%clk 0:00:30]} 20. Bxe5 {[%clk 0:00:28]}  c4 {[%clk 0:00:24]} 21. Bxc4 {[%clk 0:00:27]}  Rdc8 {[%clk 0:00:24]} 22. Ka1 {[%clk 0:00:26]}  a5 {[%clk 0:00:20]} 23. Bd4 {[%clk 0:00:20]}  Qb7 {[%clk 0:00:18]} 24. g4 {[%clk 0:00:19]}  a4 {[%clk 0:00:18]} 25. g5 {[%clk 0:00:19]}  axb3 {[%clk 0:00:17]} 26. cxb3 {[%clk 0:00:17]}  Nh5 {[%clk 0:00:16]} 27. Rc1 {[%clk 0:00:15]}  Bxg5 {[%clk 0:00:14]} 28. Rcg1 {[%clk 0:00:13]}  Bh6 {[%clk 0:00:11]} 29. Rg2 {[%clk 0:00:12]}  g6 {[%clk 0:00:10]} 30. Rb1 {[%clk 0:00:09]}  Nf4 {[%clk 0:00:10]} 31. Rc2 {[%clk 0:00:05]}  Qd7 {[%clk 0:00:04]} 32. Be5 {[%clk 0:00:04]}  Bxc4 {[%clk 0:00:03]} 33. bxc4 {[%clk 0:00:04]}  Ne6 {[%clk 0:00:03]} 34. Nb4 {[%clk 0:00:02]}  Bf8 {[%clk 0:00:03]} 35. Nd5 {[%clk 0:00:02]}  Be7 {[%clk 0:00:03]} 36. Nxe7+ {[%clk 0:00:02]}  Qxe7 {[%clk 0:00:03]} 37. Bf6 {[%clk 0:00:02]}  Qc5 {[%clk 0:00:03]} 38. Be5 {[%clk 0:00:03]}  Qc6 {[%clk 0:00:03]} 39. Rb5 {[%clk 0:00:03]}  Ra6 {[%clk 0:00:03]} 40. Ka2 {[%clk 0:00:04]}  Ra7 {[%clk 0:00:03]} 41. Rd5 {[%clk 0:00:03]}  Rd7 {[%clk 0:00:03]} 42. Qd3 {[%clk 0:00:03]}  Rb7 {[%clk 0:00:03]} 43. c5 {[%clk 0:00:02]}  Qa4 {[%clk 0:00:03]} 44. Bf6 {[%clk 0:00:01]}  Ra8 {[%clk 0:00:02]} 45. c6 {[%clk 0:00:01]}  Rb2+ {[%clk 0:00:02]} 0-1


[Site "https://www.chess.com"]

[Event "Titled Tuesday Blitz November 2 2021"]
[White "Gaehwiler, Gabriel"]
[Black "Perera Alfonso, Rene Humberto"]
[WhiteFideId "1314530"]
[BlackFideId "3514722"]
[WhiteElo "2320"]
[BlackElo "2313"]
[Result "1-0"]
[Round "06"]
[TimeControl "180+1"]
[Date "2021.11.02"]
[WhiteClock "0:00:53"]
[BlackClock "0:00:36"]

1. d4 {[%clk 0:03:00]}  d5 {[%clk 0:02:59]} 2. c4 {[%clk 0:03:01]}  c6 {[%clk 0:02:59]} 3. Nf3 {[%clk 0:03:01]}  Nf6 {[%clk 0:02:59]} 4. Nc3 {[%clk 0:03:01]}  dxc4 {[%clk 0:02:59]} 5. a4 {[%clk 0:03:01]}  Bf5 {[%clk 0:02:59]} 6. Ne5 {[%clk 0:03:00]}  Na6 {[%clk 0:02:58]} 7. f3 {[%clk 0:02:51]}  Nd7 {[%clk 0:02:58]} 8. Nxd7 {[%clk 0:02:40]}  Bxd7 {[%clk 0:02:50]} 9. e4 {[%clk 0:02:40]}  e5 {[%clk 0:02:50]} 10. d5 {[%clk 0:02:25]}  Bc5 {[%clk 0:02:43]} 11. Bxc4 {[%clk 0:02:24]}  Nb4 {[%clk 0:02:42]} 12. h4 {[%clk 0:02:11]}  h6 {[%clk 0:02:10]} 13. g3 {[%clk 0:02:07]}  a5 {[%clk 0:01:58]} 14. Kf1 {[%clk 0:02:06]}  O-O {[%clk 0:01:56]} 15. Kg2 {[%clk 0:02:06]}  Kh8 {[%clk 0:01:56]} 16. g4 {[%clk 0:02:03]}  Rc8 {[%clk 0:01:45]} 17. Qe2 {[%clk 0:01:55]}  Bd4 {[%clk 0:01:22]} 18. Rd1 {[%clk 0:01:46]}  b5 {[%clk 0:00:44]} 19. Bb3 {[%clk 0:01:44]}  c5 {[%clk 0:00:36]} 20. axb5 {[%clk 0:01:42]}  c4 {[%clk 0:00:36]} 21. Bxc4 {[%clk 0:00:53]} 1-0


[Site "https://www.chess.com"]

[Event "Titled Tuesday Blitz November 2 2021"]
[White "Goltseva, Ekaterina"]
[Black "Svane, Frederik"]
[WhiteFideId "24173770"]
[BlackFideId "12923044"]
[WhiteElo "2059"]
[BlackElo "2459"]
[Result "0-1"]
[Round "06"]
[TimeControl "180+1"]
[Date "2021.11.02"]
[WhiteClock "0:00:40"]
[BlackClock "0:01:26"]

1. d4 {[%clk 0:02:52]}  Nf6 {[%clk 0:03:00]} 2. c4 {[%clk 0:02:49]}  e6 {[%clk 0:03:00]} 3. Nc3 {[%clk 0:02:48]}  Bb4 {[%clk 0:03:01]} 4. g3 {[%clk 0:02:48]}  O-O {[%clk 0:03:00]} 5. Bg2 {[%clk 0:02:48]}  d5 {[%clk 0:03:01]} 6. Nf3 {[%clk 0:02:46]}  dxc4 {[%clk 0:03:01]} 7. O-O {[%clk 0:02:47]}  Nc6 {[%clk 0:02:58]} 8. Qa4 {[%clk 0:02:47]}  Nd5 {[%clk 0:02:22]} 9. Qc2 {[%clk 0:02:43]}  Be7 {[%clk 0:02:20]} 10. Rd1 {[%clk 0:02:41]}  a6 {[%clk 0:02:13]} 11. e4 {[%clk 0:02:30]}  Ncb4 {[%clk 0:02:10]} 12. Qd2 {[%clk 0:02:20]}  Nxc3 {[%clk 0:02:10]} 13. Qxc3 {[%clk 0:02:05]}  b5 {[%clk 0:02:10]} 14. d5 {[%clk 0:01:53]}  exd5 {[%clk 0:02:03]} 15. exd5 {[%clk 0:01:49]}  Bb7 {[%clk 0:02:03]} 16. Ne5 {[%clk 0:01:30]}  Bf6 {[%clk 0:02:03]} 17. Bf4 {[%clk 0:00:56]}  Nd3 {[%clk 0:01:40]} 18. b3 {[%clk 0:00:56]}  Re8 {[%clk 0:01:32]} 19. Rxd3 {[%clk 0:00:40]}  cxd3 {[%clk 0:01:32]} 20. Re1 {[%clk 0:00:41]}  Bxd5 {[%clk 0:01:26]} 21. Qxd3 {[%clk 0:00:40]}  Bxg2 {[%clk 0:01:26]} 22. Qxd8 {[%clk 0:00:41]}  Raxd8 {[%clk 0:01:26]} 23. Kxg2 {[%clk 0:00:41]}  Bxe5 {[%clk 0:01:23]} 24. Rxe5 {[%clk 0:00:40]}  Rxe5 {[%clk 0:01:22]} 25. Bxe5 {[%clk 0:00:41]}  Rd2 {[%clk 0:01:22]} 26. Bxc7 {[%clk 0:00:40]}  Rxa2 {[%clk 0:01:22]} 27. b4 {[%clk 0:00:40]}  Ra4 {[%clk 0:01:22]} 28. Ba5 {[%clk 0:00:39]}  Rxa5 {[%clk 0:01:23]} 29. bxa5 {[%clk 0:00:39]}  b4 {[%clk 0:01:24]} 30. Kf3 {[%clk 0:00:39]}  b3 {[%clk 0:01:25]} 31. Ke2 {[%clk 0:00:39]}  b2 {[%clk 0:01:25]} 32. Kd2 {[%clk 0:00:40]}  b1=Q {[%clk 0:01:26]} 0-1


[Site "https://www.chess.com"]

[Event "Titled Tuesday Blitz November 2 2021"]
[White "Hansen, Eric"]
[Black "Kaasen, Tor Fredrik"]
[WhiteFideId "2606771"]
[BlackFideId "1516647"]
[WhiteElo "2568"]
[BlackElo "2349"]
[Result "1/2-1/2"]
[Round "06"]
[TimeControl "180+1"]
[Date "2021.11.02"]
[WhiteClock "0:00:04"]
[BlackClock "0:00:09"]

1. e4 {[%clk 0:02:54]}  c5 {[%clk 0:03:00]} 2. Nf3 {[%clk 0:02:50]}  d6 {[%clk 0:03:00]} 3. d4 {[%clk 0:02:45]}  cxd4 {[%clk 0:03:01]} 4. Nxd4 {[%clk 0:02:46]}  Nf6 {[%clk 0:03:01]} 5. Nc3 {[%clk 0:02:46]}  a6 {[%clk 0:03:02]} 6. Be2 {[%clk 0:02:42]}  e5 {[%clk 0:03:01]} 7. Nb3 {[%clk 0:02:41]}  Be7 {[%clk 0:03:01]} 8. g4 {[%clk 0:02:39]}  h6 {[%clk 0:02:39]} 9. Be3 {[%clk 0:02:08]}  Be6 {[%clk 0:02:39]} 10. h3 {[%clk 0:01:55]}  d5 {[%clk 0:02:35]} 11. exd5 {[%clk 0:01:52]}  Nxd5 {[%clk 0:02:36]} 12. Nxd5 {[%clk 0:01:53]}  Qxd5 {[%clk 0:02:36]} 13. Bf3 {[%clk 0:01:50]}  e4 {[%clk 0:02:30]} 14. Qxd5 {[%clk 0:01:47]}  Bxd5 {[%clk 0:02:30]} 15. Be2 {[%clk 0:01:47]}  Nc6 {[%clk 0:02:17]} 16. O-O-O {[%clk 0:01:47]}  O-O-O {[%clk 0:02:18]} 17. Nc5 {[%clk 0:01:29]}  Bxc5 {[%clk 0:01:48]} 18. Bxc5 {[%clk 0:01:29]}  Kc7 {[%clk 0:01:46]} 19. c4 {[%clk 0:01:22]}  Be6 {[%clk 0:01:46]} 20. Kc2 {[%clk 0:01:21]}  b6 {[%clk 0:01:38]} 21. Be3 {[%clk 0:01:20]}  Nb4+ {[%clk 0:01:38]} 22. Kc3 {[%clk 0:01:20]}  Nc6 {[%clk 0:01:25]} 23. b4 {[%clk 0:01:16]}  g5 {[%clk 0:01:23]} 24. h4 {[%clk 0:01:13]}  Rxd1 {[%clk 0:01:18]} 25. Bxd1 {[%clk 0:01:13]}  Rg8 {[%clk 0:01:17]} 26. hxg5 {[%clk 0:01:04]}  hxg5 {[%clk 0:01:18]} 27. Rh5 {[%clk 0:01:04]}  Ne5 {[%clk 0:01:17]} 28. Rxg5 {[%clk 0:00:56]}  Rxg5 {[%clk 0:01:14]} 29. Bxg5 {[%clk 0:00:57]}  Nxg4 {[%clk 0:01:13]} 30. Bh4 {[%clk 0:00:51]}  Kc6 {[%clk 0:01:07]} 31. a4 {[%clk 0:00:48]}  Ne5 {[%clk 0:00:52]} 32. Be2 {[%clk 0:00:46]}  Bg4 {[%clk 0:00:47]} 33. Bf1 {[%clk 0:00:44]}  Bd1 {[%clk 0:00:47]} 34. b5+ {[%clk 0:00:38]}  Kb7 {[%clk 0:00:46]} 35. Bg3 {[%clk 0:00:28]}  Nd3 {[%clk 0:00:39]} 36. Bh3 {[%clk 0:00:07]}  Bxa4 {[%clk 0:00:35]} 37. bxa6+ {[%clk 0:00:08]}  Kxa6 {[%clk 0:00:34]} 38. Bc8+ {[%clk 0:00:08]}  Ka7 {[%clk 0:00:33]} 39. Kd4 {[%clk 0:00:08]}  Nc5 {[%clk 0:00:31]} 40. Ke5 {[%clk 0:00:08]}  Bb3 {[%clk 0:00:30]} 41. Kd4 {[%clk 0:00:07]}  Ne6+ {[%clk 0:00:25]} 42. Kc3 {[%clk 0:00:01]}  Bd1 {[%clk 0:00:23]} 43. Bxe6 {[%clk 0:00:01]}  fxe6 {[%clk 0:00:23]} 44. Kd4 {[%clk 0:00:02]}  Be2 {[%clk 0:00:12]} 45. Kc3 {[%clk 0:00:02]}  Kb7 {[%clk 0:00:12]} 46. Kb4 {[%clk 0:00:03]}  Kc6 {[%clk 0:00:12]} 47. Be5 {[%clk 0:00:03]}  Bf1 {[%clk 0:00:12]} 48. Bf4 {[%clk 0:00:04]}  b5 {[%clk 0:00:09]} 49. cxb5+ {[%clk 0:00:04]}  Bxb5 {[%clk 0:00:10]} 50. Kc3 {[%clk 0:00:04]}  Bd3 {[%clk 0:00:09]} 51. Kd2 {[%clk 0:00:04]} 1/2-1/2


[Site "https://www.chess.com"]

[Event "Titled Tuesday Blitz November 2 2021"]
[White "Harshavardhan G B"]
[Black "Djordjevic, Vuk"]
[WhiteFideId "25059009"]
[BlackFideId "902098"]
[WhiteElo "1825"]
[BlackElo "2463"]
[Result "1-0"]
[Round "06"]
[TimeControl "180+1"]
[Date "2021.11.02"]
[WhiteClock "0:01:41"]
[BlackClock "0:01:08"]

1. e4 {[%clk 0:03:00]}  e6 {[%clk 0:03:00]} 2. d4 {[%clk 0:02:59]}  d5 {[%clk 0:03:00]} 3. Bd3 {[%clk 0:02:59]}  c5 {[%clk 0:03:00]} 4. exd5 {[%clk 0:02:59]}  exd5 {[%clk 0:02:58]} 5. dxc5 {[%clk 0:02:58]}  Bxc5 {[%clk 0:02:58]} 6. Nf3 {[%clk 0:02:58]}  Nf6 {[%clk 0:02:58]} 7. O-O {[%clk 0:02:58]}  O-O {[%clk 0:02:58]} 8. Nc3 {[%clk 0:02:57]}  Bg4 {[%clk 0:02:58]} 9. h3 {[%clk 0:02:57]}  Bh5 {[%clk 0:02:58]} 10. Bg5 {[%clk 0:02:57]}  Nc6 {[%clk 0:02:56]} 11. Qd2 {[%clk 0:02:50]}  Bxf3 {[%clk 0:02:54]} 12. gxf3 {[%clk 0:02:51]}  Nd4 {[%clk 0:02:44]} 13. Qf4 {[%clk 0:02:29]}  Ne6 {[%clk 0:02:14]} 14. Qh4 {[%clk 0:02:28]}  Nxg5 {[%clk 0:02:10]} 15. Qxg5 {[%clk 0:02:29]}  Qd6 {[%clk 0:02:05]} 16. Kh1 {[%clk 0:02:26]}  h6 {[%clk 0:01:55]} 17. Qh4 {[%clk 0:02:22]}  Kh8 {[%clk 0:01:46]} 18. Rg1 {[%clk 0:02:11]}  Qe5 {[%clk 0:01:43]} 19. Rxg7 {[%clk 0:01:59]}  Nh5 {[%clk 0:01:09]} 20. Rh7+ {[%clk 0:01:42]}  Kg8 {[%clk 0:01:09]} 21. Rg1+ {[%clk 0:01:42]}  Ng7 {[%clk 0:01:10]} 22. Rh8+ {[%clk 0:01:39]}  Kxh8 {[%clk 0:01:08]} 23. Qxh6+ {[%clk 0:01:40]}  Kg8 {[%clk 0:01:08]} 24. Qh7# {[%clk 0:01:41]} 1-0


[Site "https://www.chess.com"]

[Event "Titled Tuesday Blitz November 2 2021"]
[White "Kadam, Om Manish"]
[Black "Nyudleev, Dolgan"]
[WhiteFideId "45076294"]
[BlackFideId "4198360"]
[WhiteElo "1729"]
[BlackElo "2354"]
[Result "0-1"]
[Round "06"]
[TimeControl "180+1"]
[Date "2021.11.02"]
[WhiteClock "0:01:06"]
[BlackClock "0:00:16"]

1. e4 {[%clk 0:03:00]}  c5 {[%clk 0:02:58]} 2. Nf3 {[%clk 0:03:01]}  d6 {[%clk 0:02:58]} 3. d4 {[%clk 0:03:01]}  Nf6 {[%clk 0:02:58]} 4. Nc3 {[%clk 0:02:59]}  cxd4 {[%clk 0:02:58]} 5. Nxd4 {[%clk 0:02:59]}  Nc6 {[%clk 0:02:58]} 6. g3 {[%clk 0:02:59]}  g6 {[%clk 0:02:58]} 7. Bg2 {[%clk 0:02:59]}  Bg7 {[%clk 0:02:58]} 8. Nxc6 {[%clk 0:03:00]}  bxc6 {[%clk 0:02:59]} 9. e5 {[%clk 0:03:01]}  dxe5 {[%clk 0:02:53]} 10. Bxc6+ {[%clk 0:03:01]}  Bd7 {[%clk 0:02:53]} 11. Bxa8 {[%clk 0:03:00]}  Qxa8 {[%clk 0:02:54]} 12. f3 {[%clk 0:02:54]}  Bh3 {[%clk 0:02:50]} 13. Bg5 {[%clk 0:02:51]}  O-O {[%clk 0:02:50]} 14. Qe2 {[%clk 0:02:45]}  Rd8 {[%clk 0:02:48]} 15. Rd1 {[%clk 0:02:27]}  Rc8 {[%clk 0:02:44]} 16. Bxf6 {[%clk 0:02:22]}  exf6 {[%clk 0:02:40]} 17. Nd5 {[%clk 0:02:19]}  Qb7 {[%clk 0:02:33]} 18. c4 {[%clk 0:02:18]}  h5 {[%clk 0:02:26]} 19. b3 {[%clk 0:02:17]}  Re8 {[%clk 0:02:15]} 20. Qe4 {[%clk 0:02:16]}  Qa6 {[%clk 0:02:06]} 21. Qe2 {[%clk 0:02:11]}  e4 {[%clk 0:02:04]} 22. f4 {[%clk 0:02:03]}  Bg4 {[%clk 0:02:00]} 23. Qd2 {[%clk 0:01:57]}  Bxd1 {[%clk 0:01:30]} 24. Nc7 {[%clk 0:01:47]}  Qc6 {[%clk 0:00:42]} 25. Nxe8 {[%clk 0:01:45]}  Bf3 {[%clk 0:00:36]} 26. Qd8 {[%clk 0:01:35]}  Kh7 {[%clk 0:00:36]} 27. Rf1 {[%clk 0:01:35]}  Qc5 {[%clk 0:00:30]} 28. Qd2 {[%clk 0:01:22]}  Bh8 {[%clk 0:00:23]} 29. Qc3 {[%clk 0:01:18]}  f5 {[%clk 0:00:20]} 30. Qd2 {[%clk 0:01:10]}  e3 {[%clk 0:00:18]} 31. Qd6 {[%clk 0:01:06]}  Bc3+ {[%clk 0:00:16]} 0-1


[Site "https://www.chess.com"]